[Event "Titled Tuesday Blitz February 21 Early 2023"]
[White "Yilmaz, Mustafa"]
[Black "EREBUNI91"]
[WhiteFideId "6302718"]
[WhiteElo "2641"]
[BlackElo "2722"]
[Result "1-0"]
[Round "10"]
[TimeControl "180+2"]
[Date "2023.02.21"]
[WhiteClock "0:00:03"]
[BlackClock "0:00:04"]

1. d4 {[%clk 0:02:56]}  Nf6 {[%clk 0:02:59]} 2. c4 {[%clk 0:02:56]}  e6 {[%clk 0:02:59]} 3. Nf3 {[%clk 0:02:47]}  d5 {[%clk 0:02:58]} 4. Nc3 {[%clk 0:02:47]}  Bb4 {[%clk 0:02:57]} 5. Qa4+ {[%clk 0:02:46]}  Nc6 {[%clk 0:02:57]} 6. e3 {[%clk 0:02:42]}  O-O {[%clk 0:02:53]} 7. Qc2 {[%clk 0:02:43]}  Re8 {[%clk 0:02:52]} 8. Be2 {[%clk 0:02:35]}  e5 {[%clk 0:02:44]} 9. dxe5 {[%clk 0:02:21]}  Nxe5 {[%clk 0:02:45]} 10. Nxe5 {[%clk 0:01:51]}  Rxe5 {[%clk 0:02:46]} 11. O-O {[%clk 0:01:51]}  Bf5 {[%clk 0:02:37]} 12. Qb3 {[%clk 0:01:50]}  Bxc3 {[%clk 0:02:26]} 13. Qxc3 {[%clk 0:01:49]}  d4 {[%clk 0:02:20]} 14. Qd2 {[%clk 0:01:07]}  c5 {[%clk 0:01:23]} 15. exd4 {[%clk 0:01:02]}  cxd4 {[%clk 0:01:16]} 16. Bf3 {[%clk 0:01:01]}  Ne4 {[%clk 0:01:12]} 17. Bxe4 {[%clk 0:00:48]}  Rxe4 {[%clk 0:01:05]} 18. b3 {[%clk 0:00:42]}  Qd7 {[%clk 0:00:52]} 19. Bb2 {[%clk 0:00:39]}  d3 {[%clk 0:00:47]} 20. Rad1 {[%clk 0:00:35]}  Re2 {[%clk 0:00:45]} 21. Qc3 {[%clk 0:00:26]}  f6 {[%clk 0:00:45]} 22. Bc1 {[%clk 0:00:15]}  Rxa2 {[%clk 0:00:36]} 23. Rfe1 {[%clk 0:00:13]}  Re8 {[%clk 0:00:33]} 24. Be3 {[%clk 0:00:11]}  a6 {[%clk 0:00:20]} 25. h3 {[%clk 0:00:11]}  Rc2 {[%clk 0:00:17]} 26. Qb4 {[%clk 0:00:09]}  Qc6 {[%clk 0:00:16]} 27. Rd2 {[%clk 0:00:07]}  Rxd2 {[%clk 0:00:13]} 28. Qxd2 {[%clk 0:00:07]}  b5 {[%clk 0:00:11]} 29. Qa5 {[%clk 0:00:07]}  bxc4 {[%clk 0:00:11]} 30. Qxf5 {[%clk 0:00:08]}  c3 {[%clk 0:00:09]} 31. Qxd3 {[%clk 0:00:08]}  Rc8 {[%clk 0:00:05]} 32. Rc1 {[%clk 0:00:08]}  c2 {[%clk 0:00:05]} 33. b4 {[%clk 0:00:04]}  h6 {[%clk 0:00:05]} 34. Bc5 {[%clk 0:00:04]}  Qa4 {[%clk 0:00:05]} 35. Qxc2 {[%clk 0:00:03]}  Qb5 {[%clk 0:00:04]} 36. Qc4+ {[%clk 0:00:03]} 1-0


[Site "https://www.chess.com"]

[Event "Titled Tuesday Blitz February 21 Early 2023"]
[White "Pichot, Alan"]
[Black "Sadubayev, Airat"]
[WhiteFideId "110973"]
[BlackFideId "13713264"]
[WhiteElo "2638"]
[BlackElo "2320"]
[Result "1-0"]
[Round "10"]
[TimeControl "180+2"]
[Date "2023.02.21"]
[WhiteClock "0:00:04"]
[BlackClock "0:00:01"]

1. Nf3 {[%clk 0:03:00]}  d5 {[%clk 0:02:56]} 2. c4 {[%clk 0:02:59]}  c6 {[%clk 0:02:55]} 3. g3 {[%clk 0:02:54]}  Bg4 {[%clk 0:02:50]} 4. Bg2 {[%clk 0:02:54]}  e6 {[%clk 0:02:47]} 5. O-O {[%clk 0:02:39]}  Nd7 {[%clk 0:02:46]} 6. d3 {[%clk 0:02:35]}  Ngf6 {[%clk 0:02:45]} 7. b3 {[%clk 0:02:29]}  Be7 {[%clk 0:02:40]} 8. Bb2 {[%clk 0:02:24]}  O-O {[%clk 0:02:39]} 9. Nbd2 {[%clk 0:02:25]}  a5 {[%clk 0:02:38]} 10. a3 {[%clk 0:02:23]}  Re8 {[%clk 0:02:36]} 11. h3 {[%clk 0:02:23]}  Bh5 {[%clk 0:02:33]} 12. Qc2 {[%clk 0:02:23]}  Bf8 {[%clk 0:02:30]} 13. Bc3 {[%clk 0:02:22]}  e5 {[%clk 0:02:21]} 14. Rfe1 {[%clk 0:02:16]}  d4 {[%clk 0:02:11]} 15. Bb2 {[%clk 0:02:10]}  Nc5 {[%clk 0:02:07]} 16. Ng5 {[%clk 0:02:04]}  Qb6 {[%clk 0:01:44]} 17. Rab1 {[%clk 0:01:45]}  h6 {[%clk 0:01:42]} 18. Ngf3 {[%clk 0:01:41]}  Bg6 {[%clk 0:01:39]} 19. Nxe5 {[%clk 0:01:38]}  Rxe5 {[%clk 0:01:29]} 20. Bxd4 {[%clk 0:01:38]}  Qc7 {[%clk 0:01:27]} 21. Nf3 {[%clk 0:01:22]}  Re6 {[%clk 0:01:19]} 22. b4 {[%clk 0:01:07]}  Ncd7 {[%clk 0:01:15]} 23. Bc3 {[%clk 0:01:07]}  axb4 {[%clk 0:01:01]} 24. axb4 {[%clk 0:01:08]}  Ree8 {[%clk 0:00:52]} 25. Qb2 {[%clk 0:01:07]}  Nh5 {[%clk 0:00:45]} 26. e4 {[%clk 0:01:05]}  Nhf6 {[%clk 0:00:40]} 27. Nh4 {[%clk 0:01:03]}  Bh7 {[%clk 0:00:33]} 28. f4 {[%clk 0:01:03]}  Nb6 {[%clk 0:00:30]} 29. Qc2 {[%clk 0:01:01]}  Nfd7 {[%clk 0:00:29]} 30. Nf3 {[%clk 0:00:59]}  Rad8 {[%clk 0:00:27]} 31. Rbd1 {[%clk 0:00:57]}  Nc8 {[%clk 0:00:24]} 32. Kh2 {[%clk 0:00:53]}  b6 {[%clk 0:00:22]} 33. Qb2 {[%clk 0:00:52]}  c5 {[%clk 0:00:20]} 34. b5 {[%clk 0:00:51]}  Ne7 {[%clk 0:00:20]} 35. Rd2 {[%clk 0:00:47]}  Ng6 {[%clk 0:00:20]} 36. e5 {[%clk 0:00:45]}  Ne7 {[%clk 0:00:18]} 37. Nh4 {[%clk 0:00:36]}  Nb8 {[%clk 0:00:17]} 38. Red1 {[%clk 0:00:36]}  Rd7 {[%clk 0:00:16]} 39. d4 {[%clk 0:00:32]}  cxd4 {[%clk 0:00:14]} 40. Rxd4 {[%clk 0:00:33]}  Red8 {[%clk 0:00:14]} 41. Rd6 {[%clk 0:00:28]}  Nc8 {[%clk 0:00:12]} 42. Rxd7 {[%clk 0:00:27]}  Rxd7 {[%clk 0:00:13]} 43. Bd5 {[%clk 0:00:25]}  Be4 {[%clk 0:00:10]} 44. e6 {[%clk 0:00:24]}  fxe6 {[%clk 0:00:05]} 45. Bxe6+ {[%clk 0:00:24]}  Kh8 {[%clk 0:00:05]} 46. Bxd7 {[%clk 0:00:23]}  Nxd7 {[%clk 0:00:06]} 47. Qd2 {[%clk 0:00:20]}  Nd6 {[%clk 0:00:05]} 48. Bb4 {[%clk 0:00:19]}  Nc5 {[%clk 0:00:05]} 49. Qd4 {[%clk 0:00:17]}  Bh7 {[%clk 0:00:04]} 50. Qe5 {[%clk 0:00:14]}  Qd7 {[%clk 0:00:02]} 51. Bxc5 {[%clk 0:00:10]}  bxc5 {[%clk 0:00:03]} 52. b6 {[%clk 0:00:10]}  Qc6 {[%clk 0:00:03]} 53. f5 {[%clk 0:00:04]}  Nf7 {[%clk 0:00:02]} 54. Qc7 {[%clk 0:00:03]}  Qe4 {[%clk 0:00:01]} 55. Qxf7 {[%clk 0:00:03]}  Qe2+ {[%clk 0:00:01]} 56. Ng2 {[%clk 0:00:04]} 1-0


[Site "https://www.chess.com"]

[Event "Titled Tuesday Blitz February 21 Early 2023"]
[White "Fiorito, Joaquin"]
[Black "Urazayev, Arystanbek"]
[WhiteFideId "180173"]
[BlackFideId "13709810"]
[WhiteElo "2405"]
[BlackElo "2460"]
[Result "1/2-1/2"]
[Round "10"]
[TimeControl "180+2"]
[Date "2023.02.21"]
[WhiteClock "0:00:10"]
[BlackClock "0:00:12"]

1. d4 {[%clk 0:03:00]}  Nf6 {[%clk 0:02:59]} 2. Nc3 {[%clk 0:03:01]}  d5 {[%clk 0:02:59]} 3. Bf4 {[%clk 0:03:01]}  e6 {[%clk 0:02:59]} 4. Nb5 {[%clk 0:03:01]}  Bb4+ {[%clk 0:03:00]} 5. c3 {[%clk 0:03:01]}  Ba5 {[%clk 0:03:00]} 6. a4 {[%clk 0:03:02]}  a6 {[%clk 0:02:59]} 7. b4 {[%clk 0:03:02]}  Bxb4 {[%clk 0:03:00]} 8. cxb4 {[%clk 0:03:01]}  axb5 {[%clk 0:03:00]} 9. axb5 {[%clk 0:03:02]}  Rxa1 {[%clk 0:03:01]} 10. Qxa1 {[%clk 0:03:03]}  Ne4 {[%clk 0:03:01]} 11. b6 {[%clk 0:02:34]}  Qe7 {[%clk 0:02:52]} 12. Qb2 {[%clk 0:02:34]}  Na6 {[%clk 0:02:40]} 13. f3 {[%clk 0:02:29]}  g5 {[%clk 0:02:17]} 14. Bxc7 {[%clk 0:01:44]}  Nxc7 {[%clk 0:02:15]} 15. bxc7 {[%clk 0:01:44]}  Nd6 {[%clk 0:02:12]} 16. Qc1 {[%clk 0:01:28]}  Nc4 {[%clk 0:02:09]} 17. e3 {[%clk 0:01:14]}  Qxb4+ {[%clk 0:02:08]} 18. Kf2 {[%clk 0:01:14]}  Bd7 {[%clk 0:02:01]} 19. Bxc4 {[%clk 0:01:09]}  dxc4 {[%clk 0:02:00]} 20. Ne2 {[%clk 0:01:09]}  Ke7 {[%clk 0:01:47]} 21. e4 {[%clk 0:01:10]}  h6 {[%clk 0:01:47]} 22. h4 {[%clk 0:01:10]}  g4 {[%clk 0:01:38]} 23. Qf4 {[%clk 0:01:08]}  Rg8 {[%clk 0:01:01]} 24. e5 {[%clk 0:00:26]}  g3+ {[%clk 0:00:50]} 25. Nxg3 {[%clk 0:00:20]}  Qb6 {[%clk 0:00:49]} 26. Ne2 {[%clk 0:00:18]}  Qxc7 {[%clk 0:00:48]} 27. Ra1 {[%clk 0:00:17]}  c3 {[%clk 0:00:48]} 28. Qf6+ {[%clk 0:00:17]}  Ke8 {[%clk 0:00:48]} 29. Rc1 {[%clk 0:00:15]}  c2 {[%clk 0:00:48]} 30. Qxh6 {[%clk 0:00:14]}  Bb5 {[%clk 0:00:48]} 31. Qd2 {[%clk 0:00:14]}  Bxe2 {[%clk 0:00:48]} 32. Rxc2 {[%clk 0:00:15]}  Bc4 {[%clk 0:00:48]} 33. Qb4 {[%clk 0:00:13]}  b5 {[%clk 0:00:48]} 34. Qxb5+ {[%clk 0:00:07]}  Bxb5 {[%clk 0:00:49]} 35. Rxc7 {[%clk 0:00:08]}  Bd7 {[%clk 0:00:49]} 36. g4 {[%clk 0:00:08]}  Ke7 {[%clk 0:00:50]} 37. h5 {[%clk 0:00:06]}  Ra8 {[%clk 0:00:49]} 38. Rc2 {[%clk 0:00:04]}  Ra1 {[%clk 0:00:44]} 39. Kg3 {[%clk 0:00:04]}  Kf8 {[%clk 0:00:41]} 40. Kf4 {[%clk 0:00:03]}  Kg7 {[%clk 0:00:37]} 41. Rc7 {[%clk 0:00:03]}  Be8 {[%clk 0:00:33]} 42. g5 {[%clk 0:00:02]}  Rh1 {[%clk 0:00:32]} 43. h6+ {[%clk 0:00:02]}  Kg6 {[%clk 0:00:31]} 44. Rc8 {[%clk 0:00:03]}  Rh4+ {[%clk 0:00:12]} 45. Kg3 {[%clk 0:00:03]}  Kxg5 {[%clk 0:00:13]} 46. Rxe8 {[%clk 0:00:03]}  Rxh6 {[%clk 0:00:11]} 47. Rg8+ {[%clk 0:00:03]}  Kf5 {[%clk 0:00:10]} 48. Kf2 {[%clk 0:00:03]}  Rh2+ {[%clk 0:00:07]} 49. Ke3 {[%clk 0:00:02]}  Ra2 {[%clk 0:00:07]} 50. Rd8 {[%clk 0:00:02]}  Ra3+ {[%clk 0:00:07]} 51. Ke2 {[%clk 0:00:03]}  Kf4 {[%clk 0:00:08]} 52. Rd7 {[%clk 0:00:04]}  Ra2+ {[%clk 0:00:08]} 53. Kd1 {[%clk 0:00:04]}  Ke3 {[%clk 0:00:08]} 54. Rxf7 {[%clk 0:00:03]}  Rd2+ {[%clk 0:00:08]} 55. Kc1 {[%clk 0:00:04]}  Rxd4 {[%clk 0:00:09]} 56. Rf6 {[%clk 0:00:04]}  Rc4+ {[%clk 0:00:07]} 57. Kb2 {[%clk 0:00:04]}  Rc6 {[%clk 0:00:07]} 58. f4 {[%clk 0:00:05]}  Kd2 {[%clk 0:00:07]} 59. f5 {[%clk 0:00:05]}  Rb6+ {[%clk 0:00:08]} 60. Ka3 {[%clk 0:00:05]}  Kc3 {[%clk 0:00:08]} 61. Ka4 {[%clk 0:00:06]}  Rb4+ {[%clk 0:00:08]} 62. Ka5 {[%clk 0:00:06]}  exf5 {[%clk 0:00:09]} 63. Rxf5 {[%clk 0:00:07]}  Re4 {[%clk 0:00:09]} 64. Kb5 {[%clk 0:00:07]}  Kd4 {[%clk 0:00:10]} 65. Kc6 {[%clk 0:00:06]}  Rxe5 {[%clk 0:00:10]} 66. Rf4+ {[%clk 0:00:07]}  Re4 {[%clk 0:00:10]} 67. Rf1 {[%clk 0:00:08]}  Re3 {[%clk 0:00:10]} 68. Rd1+ {[%clk 0:00:08]}  Rd3 {[%clk 0:00:11]} 69. Rc1 {[%clk 0:00:09]}  Rc3+ {[%clk 0:00:11]} 70. Rxc3 {[%clk 0:00:10]}  Kxc3 {[%clk 0:00:12]} 1/2-1/2


[Site "https://www.chess.com"]

[Event "Titled Tuesday Blitz February 21 Early 2023"]
[White "Kilic, Eray"]
[Black "Cuenca Jimenez, Jose Fernando"]
[WhiteFideId "44517173"]
[BlackFideId "2255570"]
[WhiteElo "2414"]
[BlackElo "2535"]
[Result "1-0"]
[Round "10"]
[TimeControl "180+2"]
[Date "2023.02.21"]
[WhiteClock "0:00:16"]
[BlackClock "0:00:04"]

1. d4 {[%clk 0:03:00]}  Nf6 {[%clk 0:02:59]} 2. Nc3 {[%clk 0:03:01]}  d6 {[%clk 0:02:57]} 3. e4 {[%clk 0:03:01]}  e5 {[%clk 0:02:57]} 4. Nf3 {[%clk 0:03:01]}  Nbd7 {[%clk 0:02:57]} 5. Rg1 {[%clk 0:03:02]}  g6 {[%clk 0:02:46]} 6. g4 {[%clk 0:03:02]}  exd4 {[%clk 0:02:40]} 7. Nxd4 {[%clk 0:02:59]}  Bg7 {[%clk 0:02:37]} 8. g5 {[%clk 0:02:56]}  Nxe4 {[%clk 0:02:36]} 9. Nxe4 {[%clk 0:02:54]}  Qe7 {[%clk 0:02:36]} 10. Rg3 {[%clk 0:02:37]}  d5 {[%clk 0:02:24]} 11. Nb5 {[%clk 0:02:25]}  Nb6 {[%clk 0:02:13]} 12. Nxc7+ {[%clk 0:01:57]}  Qxc7 {[%clk 0:02:13]} 13. Nf6+ {[%clk 0:01:57]}  Bxf6 {[%clk 0:02:08]} 14. gxf6 {[%clk 0:01:58]}  O-O {[%clk 0:02:07]} 15. Be2 {[%clk 0:01:57]}  Qe5 {[%clk 0:01:55]} 16. Be3 {[%clk 0:01:41]}  Qxf6 {[%clk 0:01:49]} 17. Bd4 {[%clk 0:01:39]}  Qf4 {[%clk 0:01:43]} 18. Bc3 {[%clk 0:01:19]}  Na4 {[%clk 0:01:23]} 19. Bd2 {[%clk 0:01:11]}  Qh4 {[%clk 0:01:13]} 20. Bg5 {[%clk 0:00:34]}  Qxh2 {[%clk 0:01:07]} 21. Qd4 {[%clk 0:00:34]}  Qh1+ {[%clk 0:00:46]} 22. Bf1 {[%clk 0:00:34]}  Qe4+ {[%clk 0:00:40]} 23. Qxe4 {[%clk 0:00:34]}  dxe4 {[%clk 0:00:41]} 24. b3 {[%clk 0:00:35]}  Nb6 {[%clk 0:00:34]} 25. O-O-O {[%clk 0:00:35]}  Bf5 {[%clk 0:00:32]} 26. Be2 {[%clk 0:00:32]}  Rac8 {[%clk 0:00:25]} 27. c4 {[%clk 0:00:31]}  f6 {[%clk 0:00:22]} 28. Be3 {[%clk 0:00:32]}  Rfd8 {[%clk 0:00:21]} 29. Rh1 {[%clk 0:00:32]}  Rd7 {[%clk 0:00:18]} 30. Kb2 {[%clk 0:00:31]}  Rcd8 {[%clk 0:00:16]} 31. Bg4 {[%clk 0:00:25]}  Bxg4 {[%clk 0:00:15]} 32. Rxg4 {[%clk 0:00:26]}  f5 {[%clk 0:00:15]} 33. Rgh4 {[%clk 0:00:26]}  Nc8 {[%clk 0:00:14]} 34. Bg5 {[%clk 0:00:21]}  Re8 {[%clk 0:00:14]} 35. b4 {[%clk 0:00:21]}  b6 {[%clk 0:00:09]} 36. c5 {[%clk 0:00:20]}  bxc5 {[%clk 0:00:09]} 37. bxc5 {[%clk 0:00:21]}  Rc7 {[%clk 0:00:09]} 38. c6 {[%clk 0:00:21]}  Ne7 {[%clk 0:00:07]} 39. Rxh7 {[%clk 0:00:20]}  Rxc6 {[%clk 0:00:04]} 40. Rh8+ {[%clk 0:00:16]}  Kf7 {[%clk 0:00:04]} 41. R1h7+ {[%clk 0:00:16]} 1-0


[Site "https://www.chess.com"]

[Event "Titled Tuesday Blitz February 21 Early 2023"]
[White "Ambartsumova, Karina"]
[Black "Fernandez Guillen, Ernesto J."]
[WhiteFideId "4166299"]
[BlackFideId "3512428"]
[WhiteElo "2393"]
[BlackElo "2477"]
[Result "0-1"]
[Round "10"]
[TimeControl "180+2"]
[Date "2023.02.21"]
[WhiteClock "0:00:01"]
[BlackClock "0:01:29"]

1. Nf3 {[%clk 0:03:00]}  Nf6 {[%clk 0:02:58]} 2. c4 {[%clk 0:03:00]}  g6 {[%clk 0:02:59]} 3. d4 {[%clk 0:02:59]}  Bg7 {[%clk 0:02:59]} 4. Nc3 {[%clk 0:03:00]}  O-O {[%clk 0:02:59]} 5. g3 {[%clk 0:02:56]}  b6 {[%clk 0:02:58]} 6. Bg2 {[%clk 0:02:56]}  Bb7 {[%clk 0:02:59]} 7. O-O {[%clk 0:02:57]}  d6 {[%clk 0:03:00]} 8. Re1 {[%clk 0:02:49]}  Nbd7 {[%clk 0:02:53]} 9. e4 {[%clk 0:02:45]}  e5 {[%clk 0:02:52]} 10. d5 {[%clk 0:02:38]}  h6 {[%clk 0:02:50]} 11. Qc2 {[%clk 0:02:19]}  Nh7 {[%clk 0:02:48]} 12. Rf1 {[%clk 0:02:14]}  a5 {[%clk 0:02:39]} 13. Ne1 {[%clk 0:02:06]}  f5 {[%clk 0:02:32]} 14. f4 {[%clk 0:02:04]}  exf4 {[%clk 0:02:31]} 15. exf5 {[%clk 0:01:35]}  fxg3 {[%clk 0:02:27]} 16. hxg3 {[%clk 0:01:35]}  Ne5 {[%clk 0:02:19]} 17. fxg6 {[%clk 0:01:26]}  Rxf1+ {[%clk 0:02:20]} 18. Bxf1 {[%clk 0:01:26]}  Ng5 {[%clk 0:02:20]} 19. Bg2 {[%clk 0:01:16]}  Qf6 {[%clk 0:02:19]} 20. Bxg5 {[%clk 0:00:52]}  Qxg5 {[%clk 0:02:20]} 21. Ne4 {[%clk 0:00:49]}  Qxg6 {[%clk 0:02:16]} 22. Nd3 {[%clk 0:00:43]}  Rf8 {[%clk 0:02:14]} 23. Nf4 {[%clk 0:00:30]}  Qh7 {[%clk 0:02:10]} 24. Ne6 {[%clk 0:00:22]}  Rf7 {[%clk 0:02:06]} 25. Rf1 {[%clk 0:00:19]}  Rxf1+ {[%clk 0:02:04]} 26. Kxf1 {[%clk 0:00:20]}  Ba6 {[%clk 0:01:56]} 27. b3 {[%clk 0:00:20]}  Bc8 {[%clk 0:01:56]} 28. Nxg7 {[%clk 0:00:19]}  Qxg7 {[%clk 0:01:56]} 29. Qf2 {[%clk 0:00:20]}  Ng4 {[%clk 0:01:54]} 30. Qf4 {[%clk 0:00:12]}  Qa1+ {[%clk 0:01:53]} 31. Ke2 {[%clk 0:00:11]}  Qxa2+ {[%clk 0:01:53]} 32. Nd2 {[%clk 0:00:12]}  Qb2 {[%clk 0:01:50]} 33. Bf3 {[%clk 0:00:10]}  Qg7 {[%clk 0:01:46]} 34. Ne4 {[%clk 0:00:05]}  Qb2+ {[%clk 0:01:38]} 35. Nd2 {[%clk 0:00:04]}  Qe5+ {[%clk 0:01:39]} 36. Qxe5 {[%clk 0:00:04]}  Nxe5 {[%clk 0:01:40]} 37. Ke3 {[%clk 0:00:03]}  Kg7 {[%clk 0:01:38]} 38. Be4 {[%clk 0:00:03]}  Bg4 {[%clk 0:01:37]} 39. Kf4 {[%clk 0:00:03]}  Bh5 {[%clk 0:01:33]} 40. Bc2 {[%clk 0:00:02]}  Bg6 {[%clk 0:01:33]} 41. Bd1 {[%clk 0:00:01]}  Kf6 {[%clk 0:01:30]} 42. Ke3 {[%clk 0:00:01]}  Nd3 {[%clk 0:01:29]} 0-1


[Site "https://www.chess.com"]

[Event "Titled Tuesday Blitz February 21 Early 2023"]
[White "Fier, Alexandr"]
[Black "Vovk, Orest"]
[WhiteFideId "2107139"]
[BlackFideId "14113490"]
[WhiteElo "2589"]
[BlackElo "2315"]
[Result "1-0"]
[Round "10"]
[TimeControl "180+2"]
[Date "2023.02.21"]
[WhiteClock "0:01:56"]
[BlackClock "0:00:02"]

1. d4 {[%clk 0:03:00]}  h6 {[%clk 0:02:57]} 2. e4 {[%clk 0:02:57]}  g5 {[%clk 0:02:56]} 3. h4 {[%clk 0:02:55]}  g4 {[%clk 0:02:56]} 4. Qxg4 {[%clk 0:02:55]}  d5 {[%clk 0:02:56]} 5. Qe2 {[%clk 0:02:54]}  dxe4 {[%clk 0:02:56]} 6. Qxe4 {[%clk 0:02:54]}  Nf6 {[%clk 0:02:56]} 7. Qd3 {[%clk 0:02:55]}  Nc6 {[%clk 0:02:57]} 8. Nf3 {[%clk 0:02:55]}  Bg4 {[%clk 0:02:57]} 9. c3 {[%clk 0:02:54]}  Qd5 {[%clk 0:02:57]} 10. Nbd2 {[%clk 0:02:53]}  O-O-O {[%clk 0:02:55]} 11. Qb5 {[%clk 0:02:53]}  e5 {[%clk 0:02:30]} 12. Qxd5 {[%clk 0:02:52]}  Nxd5 {[%clk 0:02:29]} 13. Bb5 {[%clk 0:02:52]}  exd4 {[%clk 0:02:23]} 14. Bxc6 {[%clk 0:02:52]}  dxc3 {[%clk 0:02:17]} 15. Bxb7+ {[%clk 0:02:42]}  Kxb7 {[%clk 0:02:17]} 16. bxc3 {[%clk 0:02:42]}  Re8+ {[%clk 0:02:11]} 17. Kf1 {[%clk 0:02:41]}  Bg7 {[%clk 0:01:53]} 18. Rb1+ {[%clk 0:02:40]}  Kc8 {[%clk 0:01:50]} 19. c4 {[%clk 0:02:33]}  Nc3 {[%clk 0:01:30]} 20. Rb3 {[%clk 0:02:32]}  Bf5 {[%clk 0:01:21]} 21. Bb2 {[%clk 0:02:23]}  Bd3+ {[%clk 0:01:17]} 22. Kg1 {[%clk 0:02:24]}  Ne2+ {[%clk 0:01:17]} 23. Kh2 {[%clk 0:02:23]}  Bxb2 {[%clk 0:01:16]} 24. Rxd3 {[%clk 0:02:21]}  Rhg8 {[%clk 0:01:11]} 25. Rb1 {[%clk 0:02:17]}  Nf4 {[%clk 0:01:06]} 26. Re3 {[%clk 0:02:09]}  Rxg2+ {[%clk 0:00:38]} 27. Kh1 {[%clk 0:02:09]}  Reg8 {[%clk 0:00:28]} 28. Rxb2 {[%clk 0:02:06]}  Rxf2 {[%clk 0:00:28]} 29. Reb3 {[%clk 0:02:05]}  Rg4 {[%clk 0:00:09]} 30. Ne4 {[%clk 0:01:55]}  Rf1+ {[%clk 0:00:06]} 31. Kh2 {[%clk 0:01:55]}  f5 {[%clk 0:00:03]} 32. Rb8+ {[%clk 0:01:55]}  Kd7 {[%clk 0:00:03]} 33. Nf6+ {[%clk 0:01:56]}  Ke6 {[%clk 0:00:03]} 34. Nxg4 {[%clk 0:01:57]}  fxg4 {[%clk 0:00:04]} 35. Nd4+ {[%clk 0:01:57]}  Ke5 {[%clk 0:00:03]} 36. Rd2 {[%clk 0:01:55]}  h5 {[%clk 0:00:02]} 37. Re8+ {[%clk 0:01:55]}  Kf6 {[%clk 0:00:02]} 38. Rf8+ {[%clk 0:01:56]}  Kg7 {[%clk 0:00:02]} 39. Rxf4 {[%clk 0:01:55]}  Rxf4 {[%clk 0:00:02]} 40. Ne6+ {[%clk 0:01:56]} 1-0


[Site "https://www.chess.com"]

[Event "Titled Tuesday Blitz February 21 Early 2023"]
[White "Shapiro, Viktor"]
[Black "Halkias, Stelios"]
[WhiteFideId "4175700"]
[BlackFideId "4201809"]
[WhiteElo "2192"]
[BlackElo "2511"]
[Result "1-0"]
[Round "10"]
[TimeControl "180+2"]
[Date "2023.02.21"]
[WhiteClock "0:00:19"]
[BlackClock "0:00:02"]

1. c4 {[%clk 0:03:00]}  Nf6 {[%clk 0:02:53]} 2. Nc3 {[%clk 0:03:01]}  g6 {[%clk 0:02:53]} 3. g3 {[%clk 0:03:01]}  Bg7 {[%clk 0:02:53]} 4. Bg2 {[%clk 0:03:02]}  O-O {[%clk 0:02:53]} 5. e3 {[%clk 0:03:02]}  d6 {[%clk 0:02:53]} 6. Nge2 {[%clk 0:03:02]}  Nbd7 {[%clk 0:02:53]} 7. d4 {[%clk 0:03:03]}  e5 {[%clk 0:02:53]} 8. O-O {[%clk 0:03:03]}  h5 {[%clk 0:02:53]} 9. h3 {[%clk 0:03:03]}  Re8 {[%clk 0:02:51]} 10. b3 {[%clk 0:02:57]}  a5 {[%clk 0:02:41]} 11. Bb2 {[%clk 0:02:57]}  c6 {[%clk 0:02:40]} 12. Qc2 {[%clk 0:02:55]}  Nf8 {[%clk 0:02:33]} 13. dxe5 {[%clk 0:02:54]}  dxe5 {[%clk 0:02:33]} 14. Rad1 {[%clk 0:02:54]}  Qe7 {[%clk 0:02:32]} 15. Na4 {[%clk 0:02:51]}  N8h7 {[%clk 0:02:25]} 16. Qc1 {[%clk 0:02:40]}  Ng5 {[%clk 0:02:00]} 17. h4 {[%clk 0:02:31]}  Ngh7 {[%clk 0:01:35]} 18. Ba3 {[%clk 0:02:28]}  Qe6 {[%clk 0:01:35]} 19. Nb6 {[%clk 0:02:19]}  Ra6 {[%clk 0:01:34]} 20. Rd6 {[%clk 0:02:16]}  Qf5 {[%clk 0:01:34]} 21. Nc3 {[%clk 0:02:07]}  e4 {[%clk 0:01:20]} 22. Nxc8 {[%clk 0:02:06]}  Rxc8 {[%clk 0:01:19]} 23. Rfd1 {[%clk 0:01:53]}  Raa8 {[%clk 0:01:17]} 24. R6d4 {[%clk 0:01:43]}  Re8 {[%clk 0:01:17]} 25. Qc2 {[%clk 0:01:42]}  g5 {[%clk 0:01:17]} 26. Nxe4 {[%clk 0:01:40]}  Ng4 {[%clk 0:01:09]} 27. Rd7 {[%clk 0:01:24]}  gxh4 {[%clk 0:01:06]} 28. gxh4 {[%clk 0:01:23]}  Nf8 {[%clk 0:01:04]} 29. Rxb7 {[%clk 0:01:20]}  Ng6 {[%clk 0:01:02]} 30. Rdd7 {[%clk 0:01:13]}  N4e5 {[%clk 0:01:02]} 31. Qd1 {[%clk 0:00:47]}  Nxh4 {[%clk 0:00:58]} 32. Ng3 {[%clk 0:00:45]}  Nhf3+ {[%clk 0:00:41]} 33. Kh1 {[%clk 0:00:44]}  Qg4 {[%clk 0:00:38]} 34. Bxf3 {[%clk 0:00:36]}  Nxf3 {[%clk 0:00:38]} 35. Kg2 {[%clk 0:00:31]}  Nh4+ {[%clk 0:00:32]} 36. Kf1 {[%clk 0:00:30]}  Qh3+ {[%clk 0:00:31]} 37. Ke2 {[%clk 0:00:30]}  Ng6 {[%clk 0:00:19]} 38. Rxf7 {[%clk 0:00:25]}  Bh6 {[%clk 0:00:20]} 39. Qd7 {[%clk 0:00:21]}  Qxd7 {[%clk 0:00:12]} 40. Rbxd7 {[%clk 0:00:21]}  Ne5 {[%clk 0:00:12]} 41. Rfe7 {[%clk 0:00:16]}  Nxd7 {[%clk 0:00:12]} 42. Rxd7 {[%clk 0:00:17]}  h4 {[%clk 0:00:11]} 43. Nf5 {[%clk 0:00:16]}  Bf8 {[%clk 0:00:12]} 44. Bb2 {[%clk 0:00:15]}  Re6 {[%clk 0:00:11]} 45. Kf3 {[%clk 0:00:15]}  Rae8 {[%clk 0:00:10]} 46. Kg4 {[%clk 0:00:14]}  Rg6+ {[%clk 0:00:10]} 47. Kxh4 {[%clk 0:00:13]}  Re4+ {[%clk 0:00:09]} 48. f4 {[%clk 0:00:14]}  Re8 {[%clk 0:00:08]} 49. Be5 {[%clk 0:00:13]}  Rg1 {[%clk 0:00:08]} 50. e4 {[%clk 0:00:13]}  c5 {[%clk 0:00:08]} 51. Kh3 {[%clk 0:00:11]}  a4 {[%clk 0:00:08]} 52. bxa4 {[%clk 0:00:11]}  Re1 {[%clk 0:00:07]} 53. Ng3 {[%clk 0:00:11]}  Re3 {[%clk 0:00:06]} 54. Kg4 {[%clk 0:00:11]}  Re1 {[%clk 0:00:06]} 55. Nh5 {[%clk 0:00:11]}  Re7 {[%clk 0:00:05]} 56. Rd8 {[%clk 0:00:11]}  Kf7 {[%clk 0:00:05]} 57. Kf5 {[%clk 0:00:11]}  Rf1 {[%clk 0:00:05]} 58. Nf6 {[%clk 0:00:12]}  Rxe5+ {[%clk 0:00:04]} 59. Kxe5 {[%clk 0:00:12]}  Bg7 {[%clk 0:00:04]} 60. Rd7+ {[%clk 0:00:13]}  Kg6 {[%clk 0:00:05]} 61. Rd6 {[%clk 0:00:13]}  Kf7 {[%clk 0:00:05]} 62. f5 {[%clk 0:00:13]}  Ra1 {[%clk 0:00:04]} 63. Rd7+ {[%clk 0:00:13]}  Kf8 {[%clk 0:00:04]} 64. Ke6 {[%clk 0:00:14]}  Bxf6 {[%clk 0:00:04]} 65. Kxf6 {[%clk 0:00:14]}  Ke8 {[%clk 0:00:04]} 66. Ra7 {[%clk 0:00:14]}  Kd8 {[%clk 0:00:04]} 67. e5 {[%clk 0:00:15]}  Rxa2 {[%clk 0:00:04]} 68. e6 {[%clk 0:00:15]}  Kc8 {[%clk 0:00:04]} 69. e7 {[%clk 0:00:15]}  Re2 {[%clk 0:00:04]} 70. Kf7 {[%clk 0:00:16]}  Kb8 {[%clk 0:00:04]} 71. Rd7 {[%clk 0:00:16]}  Re5 {[%clk 0:00:04]} 72. Rd8+ {[%clk 0:00:17]}  Kc7 {[%clk 0:00:03]} 73. f6 {[%clk 0:00:18]}  Re4 {[%clk 0:00:03]} 74. e8=Q {[%clk 0:00:18]}  Rxe8 {[%clk 0:00:02]} 75. Kxe8 {[%clk 0:00:19]} 1-0


[Site "https://www.chess.com"]